{"text_format":"1","workbook":"xlsx","n_sheets":5,"sheets":["Guide","Grille de surveillance","Récap","Pièces contrôlées","Donnees"],"not_rendered":{"charts":0,"images":3,"macros":0,"external_links":0,"defined_names":4,"comments":0,"pivot_tables":0},"unopened":[],"bounds":{"document_bytes":16777216,"sheet_cells":100000,"rows_first":2000,"rows_last":500,"rows_between":2000,"halvings":0,"cell_chars":16384,"cell_head_chars":4096},"cells_cut":0,"cells_raw":0,"read":"whole","date_system":"1900"}

{"sheet":"Guide","index":0,"n_rows":77,"n_cols":7,"rows_kept":77,"cut":false,"hidden":false,"merged":[[66,0,66,11],[1,1,1,2],[2,3,2,10],[4,3,4,10],[65,4,65,8],[49,0,49,12],[8,0,8,12],[23,4,23,8],[45,4,45,8],[10,0,10,12],[47,0,47,12]]}
[]
[null,"Office de l'accueil\nde jour des enfants"]
[null,"de jour des enfants",null,"GUIDE D'UTILISATION DE LA GRILLE DE SURVEILLANCE "]
[]
[null,"Rue de la Paix 4",null," DE L’ACCUEIL COLLECTIF DE JOUR PRESCOLAIRE A LA JOURNEE"]
[null,"1014 Lausanne"]
[]
[]
["Informations générales"]
[]
["Cette grille de surveillance est un outil permettant de vérifier la conformité de l’institution au regard de l’ordonnance fédérale du 19 octobre 1977 sur le placement d’enfants (OPE), de la loi du 20 juin 2006 sur l’accueil de jour des enfants (LAJE), du règlement du 3 avril 2019 d’application de la loi du 20 juin 2006 sur l’accueil de jour des enfants (RLAJE) et des directives cantonales pour l’accueil collectif de jour préscolaire à la journée (directives)"]
[]
["Lien vers les références légales:"]
["-","OPE","art. 19"]
["-","LAJE","art. 5 et 6"]
["-","Directives "]
[]
["Ce classeur Excel comprend 4 onglets:"]
["-","Le présent guide"]
["-","La grille de surveillance"]
["-","Le récapitulatif"]
["-","Les pièces contrôlées"]
[]
["2e onglet",null,null,null,"Grille de surveillance"]
[]
["Cet onglet se présente en 4 parties:"]
[]
["1)","les informations concernant l'institution"]
[null,"-","Indiquer les informations concernant l'institution"]
[]
["2)","Les informations sur le déroulement de la visite"]
[null,"-","Indiquer dans quel cadre la visite s'est déroulée (groupes observés, personnes vues en entretiens, type de visite)"]
[]
["3)","La vérification du respect des bases légales"]
[null,"-","Cette partie est à compléter au regard de la conformité des bases légales indiquées dans la colonne \"j\""]
[null,"-","Indiquer un \"x\" dans la colonne \"check\" (colonne \"M\") si le critère est rempli "]
[null,"-","La somme des \"x\" donne un certain nombre de points acquis par item (calcul automatique)"]
[]
[null,"Astuce:","Pour aller à la ligne: \"alt\", maintenir appuyé puis \"Enter\""]
[]
["4)","Le résultat, les constats et/ou les recommandations"]
[null,"-","Le résultat final de conformité s'affiche automatiquement à la ligne 266"]
[null,"-","Les points nécessitant une mise en conformité avec des délais de mise en application sont indiqués aux lignes 274 à 283"]
[null,"-","Les recommandations se trouvent aux lignes 287 à 296"]
[]
["3e onglet",null,null,null,"Récapitulatif"]
[]
["Dans cet onglet, vous trouverez une vision d'ensemble, qui se remplit automatiquement, des résultats obtenus par item ainsi que le résultat final de la conformité."]
[]
["Explication du calcul de conformité"]
[]
[null,"La conformité de l'institution se calcule par:"]
[]
["ð","un total de points acquis cumulés sur les items no: ",null,null,null,null,"1.1; 1.2; 3.1; 4.1; 4.2"]
[null,"Conforme",null,"Entre 14 et 10"]
[null,"Partiellement conforme",null,"Entre 9 et 7",null,"[75% - 50%]"]
[null,"Non conforme",null,"Entre 6 et 0",null,"[-50%]"]
[]
["ð","les items 1.3; 2.1; 2.2; 3.2 et 4.3 qui font basculer le résultat indépendamment du total de points acquis:"]
[null,1.3,"5 = conforme ; 4 - 0  = Partiellement conforme"]
[null,2.1,"5 - 4 = conforme ; 3 = partiellement conforme ; 2 - 0 = non conforme"]
[null,2.2000000000000002,"6 - 4 = conforme ; 3 = partiellement conforme ; 2 - 0 = non conforme"]
[null,3.2,"4 = conforme ; 3 - 0  = Partiellement conforme"]
[null,4.3,"18 - 13 = conforme ; 12 - 9 = partiellement conforme ; 8 - 0 = non conforme"]
[]
["4e onglet",null,null,null,"Pièces contrôlées"]
["Dans cet onglet, il s'agit de cocher d'un \"x\" toutes les pièces demandées"]
[]
[]
[]
[]
[]
[]
[]
[]
[]
["V3_01.24"]

{"sheet":"Grille de surveillance","index":1,"n_rows":296,"n_cols":16,"rows_kept":296,"cut":false,"hidden":false,"merged":[[117,2,117,11],[123,2,123,10],[199,2,199,10],[219,2,219,10],[215,2,215,11],[203,2,203,11],[205,2,205,11],[223,2,223,11],[268,2,268,11],[265,2,266,5],[265,6,266,8],[258,2,258,11],[29,15,29,18],[20,15,20,18],[71,2,71,10],[78,2,78,10],[79,2,79,10],[59,15,59,20],[44,15,44,19],[43,2,43,10],[0,15,6,18],[4,4,4,11],[2,4,2,11],[71,15,71,20],[49,2,49,11],[44,2,44,10],[45,2,45,10],[124,2,124,10],[156,2,156,10],[198,2,198,10],[1,2,1,3],[89,2,89,11],[29,2,29,11],[190,2,190,11],[119,2,120,7],[35,1,35,12],[70,2,70,10],[115,2,115,11],[137,1,138,1],[175,2,175,11],[158,2,158,10],[164,2,164,11],[166,1,167,1],[166,2,167,12],[96,1,97,1],[110,2,110,10],[111,2,111,10],[96,2,97,7],[119,1,120,1],[139,1,140,1],[120,9,120,10],[100,15,100,19],[140,9,140,10],[143,2,143,10],[144,2,144,10],[145,2,145,10],[139,2,140,7],[66,2,67,7],[295,2,295,12],[282,2,282,10],[277,2,277,10],[278,2,278,10],[279,2,279,10],[280,2,280,10],[281,2,281,10],[273,2,273,10],[274,2,274,10],[275,2,275,10],[276,2,276,10],[286,2,286,12],[287,2,287,12],[288,2,288,12],[289,2,289,12],[290,2,290,12],[292,2,292,12],[293,2,293,12],[294,2,294,12],[291,2,291,12],[262,1,263,1],[262,2,263,12],[192,1,193,1],[192,2,193,7],[193,9,193,10],[179,1,180,1],[260,2,260,11],[243,2,243,10],[244,2,244,10],[248,2,248,11],[250,2,250,11],[235,2,235,11],[237,2,237,11],[232,2,232,10],[179,2,180,7],[188,2,188,11],[272,11,272,12],[269,2,269,11],[225,2,225,11],[213,2,213,11],[245,2,245,10],[177,2,177,11],[129,2,129,10],[159,2,159,10],[172,2,172,10],[152,1,153,1],[152,2,153,7],[162,2,162,11],[148,2,148,11],[150,2,150,11],[168,1,169,1],[168,2,169,7],[137,2,138,12],[157,2,157,10],[133,2,133,11],[135,2,135,11],[66,1,67,1],[94,1,95,1],[94,2,95,12],[8,1,8,12],[20,1,20,12],[33,1,33,12],[39,2,40,7],[53,2,54,8],[51,2,51,11],[62,2,62,11],[64,2,64,11],[53,1,54,1],[40,9,40,10],[54,9,54,10],[57,2,57,10],[59,2,59,10],[37,1,38,1],[37,2,38,12],[39,1,40,1],[46,2,46,10],[91,2,91,11]]}
[null,null,null,null,null,null,null,null,null,null,null,null,null,null,null,"Hors zone impression"]
[null,null,"Office de l'accueil\nde jour des enfants"]
[null,null,"de jour des enfants",null,"GRILLE DE SURVEILLANCE "]
[]
[null,null,"Rue de la Paix 4",null," DE L’ACCUEIL COLLECTIF DE JOUR PRESCOLAIRE A LA JOURNEE"]
[null,null,"1014 Lausanne"]
[]
[]
[null,"Informations sur l'institution"]
[]
[null,null,null,"Nom de l'institution",null,null,null,null,null,null,"N° autorisation"]
[null,null,null,"Nom de la direction 1",null,null,null,null,null,null,"Date de la précédente visite"]
[null,null,null,"Adresse mail de la direction 1",null,null,null,null,null,null,"Date de la visite"]
[null,null,null,"Nom de la direction 2",null,null,null,null,null,null,"Horaire de la visite (de xh à xh)"]
[null,null,null,"Adresse mail de la direction 2"]
[null,null,null,"Adresse mail de l'exploitant"]
[null,null,null,"Adresse de l'institution"]
[]
[null,null,null,"Nom(s) CEMA"]
[]
[null,"Informations sur le déroulement de la visite",null,null,null,null,null,null,null,null,null,null,null,null,null,"MARCHE A SUIVRE"]
[]
[null,null,"Groupes observés",null,null,null,"Entretiens",null,null,null,"Type de visite"]
[null,null,null,"nurserie",null,null,null,"directeur/rice",null,null,null,"annoncée",null,null,null,"Ü Complétez les cellules uniquement par un  \"x\""]
[null,null,null,"trotteurs",null,null,null,"suppléant-e direction",null,null,null,"impromptue"]
[null,null,null,"grands",null,null,null,"direction générale"]
[null,null,null,"groupe vertical"]
[]
[null,null,"Commentaires généraux sur l'institution / visite"]
[null,null,null,null,null,null,null,null,null,null,null,null,null,null,null,"Ü Pour aller à la ligne au sein d'une même cellule : \"Alt\"  maintenir appuyé puis \"Enter\" \n\n"]
[]
[]
[]
[null,"Vérification du respect des bases légales"]
[]
[null,"Par défaut, les renvois légaux concernent les directives cantonales pour l’accueil collectif de jour préscolaire à la journée "]
[]
[null,"Norme 1","L’institution respecte les exigences légales en matière de direction et de personnel d’encadrement"]
[]
[null,1.1000000000000001,"Les responsabilités de la direction de l’institution sont conformes aux directives ",null,null,null,null,null,null,"Références légales",null,"Points max","Résultat"]
[null,null,null,null,null,null,null,null,null,"art. 15 al.1 let. b, c et f; art. 17 al. 3 et 18 al. 1 OPE; art. 1 al. 2, 3 et 4; art. 5 al. 1 let. e  ",null,4,{"$f":"COUNTIF(M44:M47,\"x\")","v":0}]
[]
[null,null,"La direction :",null,null,null,null,null,null,null,null,null,"Check"]
[null,"a)","communique les nouveaux engagements à l’OAJE, contrôle l’état de santé du personnel, si les enfants sont sous surveillance médicale et s’ils sont assurés contre la maladie et les accidents ainsi qu'en matière de responsabilité civile"]
[null,"b)","supervise le personnel de l’institution et la prise en charge éducative des enfants, en particulier par des observations, des entretiens de collaboration et lors des colloques"]
[null,"c)","connaît les enfants et les familles accueillis au sein de l’institution (mise en place de moyens de communication à disposition des parents afin de joindre la direction, procédure interne garantissant l’information au sujet des spécificités des familles, entretiens réguliers avec les parents et présence aux colloques de groupes)"]
[null,"d)","met en place des mesures de protection des travailleuses et travailleurs contre les inégalités et des mesures de santé et de sécurité au travail pour le personnel"]
[]
[null,null,"Commentaires / constats "]
[null,null,null,null,null,null,null,null,null,null,null,null,null,null,null,"Ü La hauteur des lignes sont modifiables manuellement"]
[null,null,"Recommandations"]
[]
[]
[null,1.2,"Les exigences légales relatives au taux d’activité de la direction ainsi qu’à son organisation sont respectées ",null,null,null,null,null,null,"Références légales",null,"Points max","Résultat"]
[null,null,null,null,null,null,null,null,null,"art. 1 al. 5, 7, 8 et 10; art. 14",null,3,{"$f":"COUNTIF(M58:M60,\"x\")","v":0}]
[]
[null,null,"La direction :",null,null,null,null,null,null,null,null,null,"Check"]
[null,"a)","assure un taux de présence dans l’institution conforme aux directives, sa suppléance est assurée et les données correspondent à ce qui est annoncé dans la demande d’autorisation d’exploiter (AE)"]
[null,"b)","assure une présence régulière sur chaque site (cocher la case si l’institution n’a qu’un seul site) "]
[null,"c)","répond à l’exigence légale sur la formation complémentaire reconnue par l'OAJE (formation commencée au cours des deux premières années de son activité et réussie dans les cinq années suivant son entrée en fonction)"]
[]
[null,null,"Commentaires / constats "]
[]
[null,null,"Recommandations"]
[]
[]
[null,1.3,"Le taux d’encadrement éducatif des enfants accueillis est conforme aux directives ",null,null,null,null,null,null,"Références légales",null,"Points max","Résultat"]
[null,null,null,null,null,null,null,null,null,"art. 2; art. 3",null,5,{"$f":"IF(AND(M71=\"x\",M72=\"x\",M79=\"x\",M80=\"x\",M81=\"x\"),\"Conforme\",\"Partiellement conforme\")","v":"Partiellement conforme"}]
[null,null,"5 points = conforme",null,"0-4 points = partiellement conforme"]
[null,null,null,null,null,null,null,null,null,null,null,null,"Check"]
[null,"a)","Le nombre d’enfants pris en charge dans l’institution est indiqué sur une liste de présence et est conforme à l’autorisation"]
[null,"b)","La dotation du personnel d'encadrement, selon la grille de dotation mise à disposition par l’OAJE, est conforme au cadre réglementaire et aux conditions définies dans l’autorisation",null,null,null,null,null,null,null,null,null,{"$f":"IF(AND(C73=\"x\",C74=\"x\",C75=\"x\",C76=\"x\",C77=\"x\"),\"x\",\"\")","v":""},null,null," Ü la cellule \"M73\" se coche automatiquement si la totalité des cellules \"C74\" à \"C78\" sont cochées"]
[null,null,null,"Taux d'encadrement "]
[null,null,null,"Répartition des professionnel-le-s de l’enfance / APE et EDE/ASE"]
[null,null,null,"Temps hors présence enfants (THPE)"]
[null,null,null,"Suivi des apprenti-e-s et stagiaires hors du THPE"]
[null,null,null,"Temps de présence du personnel d’encadrement auprès des enfants (ne dépasse pas 8h30 par jour)"]
[]
[null,"c)","Un membre du personnel d’encadrement peut se rendre en tout temps et sans délai dans l’institution en cas d’urgence si l’encadrement d’un groupe de maximum 10 enfants est confié à une seule personne"]
[null,"d)","En cas d’accueil d’urgence ponctuel et limité dans le temps, les conditions sont respectées (surface et personnel d’encadrement) et la direction en informe l’OAJE sans délai et par écrit"]
[null,"e)","L'âge des enfants est conforme au secteur dans lequel ils sont accueillis"]
[null,"Documents à disposition :"]
[null,null,"ð","Planning hebdomadaire des enfants (de la semaine en cours)"]
[null,null,"ð","Planning horaires du personnel (de la semaine en cours)"]
[null,null,"ð","Grille de dotation du personnel"]
[null,null,"ð","Liste des remplaçant-e-s en cas de besoin"]
[null,null,"ð","Liste des enfants fréquentant l’institution (nom, prénom et date de naissance)"]
[]
[null,null,"Commentaires / constats "]
[]
[null,null,"Recommandations"]
[]
[]
[]
[null,"Norme 2","L'institution respecte les exigences légales en matière de sécurité, de santé et d’hygiène"]
[]
[null,2.1,"La sécurité physique des enfants est assurée ",null,null,null,null,null,null,"Références légales",null,"Points max","Résultat"]
[null,null,null,null,null,null,null,null,null,"art. 5 ; art. 20",null,5,{"$f":"IF(N114>=4,\"Conforme\",IF(N114=3,\"Partiellement conforme\",\"Non conforme\"))","v":"Non conforme"}]
[null,null,"5 - 4 points = conforme",null,null,"3 points = partiellement conforme ",null,null,null,"2-0 points = non conforme"]
[null,null,null,null,null,null,null,null,null,null,null,null,"Check"]
[null,"a)","Toutes les mesures nécessaires à la sécurité des enfants, eu égard à leur âge, ont été prises :",null,null,null,null,null,null,null,null,null,{"$f":"IF(O107>=3,\"x\",\"\")","v":""},null,{"$f":"IF(M101=\"x\",1,0)","v":0}," Ü la cellule \"M102\" se coche automatiquement si au moins 3 "]
[null,null,null,null,null,null,null,null,null,null,null,null,null,{"$f":"IF(C102=\"x\",1,0)","v":0},null,"cellules de \"C104\" à \"C108\" sur 5 sont cochées"]
[null,null,null,"procédures garantissant la sécurité des enfants exigées par les directives",null,null,null,null,null,null,null,null,null,0]
[null,null,null,"copie du permis d’habiter / d'utiliser a été remis à l’OAJE",null,null,null,null,null,null,null,null,null,0]
[null,null,null,"copie de l’annonce à l’OFCO et rapports périodiques",null,null,null,null,null,null,null,null,null,0]
[null,null,null,"réponse-s suite aux rapports ECA",null,null,null,null,null,null,null,null,null,0]
[null,null,null,"mesures techniques protectrices des enfants (art. 20)",null,null,null,null,null,null,null,null,null,0,{"$f":"SUM(N103:N107)","v":0}]
[]
[null,null,"La direction:"]
[null,"b)","garantit la mise en application des procédures et leur mise à jour ",null,null,null,null,null,null,null,null,null,null,{"$f":"IF(M110=\"x\",1,0)","v":0}]
[null,"c)","organise régulièrement des exercices et formations pour gérer les situations d’urgence et tester les mesures de sécurité, en particulier celles en lien avec l’évacuation en cas d’incendie",null,null,null,null,null,null,null,null,null,null,{"$f":"IF(M111=\"x\",1,0)","v":0}]
[null,"d)","identifie les risques et les dangers liés aux locaux et prend toutes les mesures nécessaires pour la sécurité des enfants (jeux, soins, repas, produits toxiques, espace et matériel dangereux, etc.)",null,null,null,null,null,null,null,null,null,null,0]
[null,"e)","veille à ce que le personnel applique les règles de sécurité au quotidien ",null,null,null,null,null,null,null,null,null,null,0]
[null,null,null,null,null,null,null,null,null,null,null,null,null,{"$f":"SUM(O101+N110+N111+N112+N113)","v":0}]
[null,null,"Commentaires / constats "]
[]
[null,null,"Recommandations"]
[]
[]
[null,2.2000000000000002,"Toutes les mesures nécessaires touchant à la santé des enfants, à l’hygiène des locaux, et du matériel sont prises ",null,null,null,null,null,null,"Références légales",null,"Points max","Résultat"]
[null,null,null,null,null,null,null,null,null,"art. 5 al. 1 let. c et g; art. 6",null,6,{"$f":"IF(N132>=4,\"Conforme\",IF(N132=3,\"Partiellement conforme\",\"Non conforme\"))","v":"Non conforme"}]
[null,null,"6 - 4 points = conforme",null,null,"3 points = partiellement conforme ",null,null,null,"2 - 0 points = non conforme"]
[null,null,null,null,null,null,null,null,null,null,null,null,"Check"]
[null,"a)","La direction se base sur des documents de référence en matière de prévention, de promotion de la santé, d'hygiène, d'autocontrôle en lien avec la manipulation des denrées alimentaires.",null,null,null,null,null,null,null,null,null,null,{"$f":"IF(M124=\"x\",1,0)","v":0}]
[null,"b)","Toutes les mesures utiles ont été prises pour faire en sorte que les enfants accueillis ne souffrent pas de tabagisme ou de vapotage passif",null,null,null,null,null,null,null,null,null,null,{"$f":"IF(M125=\"x\",1,0)","v":0}]
[null,"c)","Le mobilier et les équipements sont entretenus de façon à garantir l’hygiène",null,null,null,null,null,null,null,null,null,null,{"$f":"IF(M126=\"x\",1,0)","v":0}]
[null,null,null,null,null,null,null,null,null,null,null,null,null,0]
[null,"d)","L'enfant bénéficie d’une literie individuelle, propre et qui respecte les normes d'hygiène",null,null,null,null,null,null,null,null,null,null,0]
[null,null,null,null,null,null,null,null,null,null,null,null,null,0]
[null,"e)","Le personnel veille à ce que les enfants soient équipés de manière appropriée à la situation (météo, température, etc.) ",null,null,null,null,null,null,null,null,null,null,0]
[null,"f)","Le personnel est attentif aux besoins de soins des enfants",null,null,null,null,null,null,null,null,null,null,0]
[null,null,null,null,null,null,null,null,null,null,null,null,null,{"$f":"SUM(N124:N131)","v":0}]
[null,null,"Commentaires / constats "]
[]
[null,null,"Recommandations"]
[]
[]
[null,"Norme 3","L'institution respecte les exigences légales en matière d’organisation, d’aménagements des locaux et d'équipements"]
[]
[null,3.1,"Aménagements et équipements",null,null,null,null,null,null,"Références légales",null,"Points max","Résultat"]
[null,null,null,null,null,null,null,null,null,"art. 6 al. 1; art. 7 al. 1",null,3,{"$f":"COUNTIF(M144:O146,\"x\")","v":0}]
[]
[null,null,null,null,null,null,null,null,null,null,null,null,"Check"]
[null,"a)","Le mobilier et les équipements, sont adaptés à l’âge, à la taille et au poids des enfants, de façon à éviter les chutes et blessures et permettent aux enfants d’évoluer en toute sécurité "]
[null,"b)","Le mobilier et les équipements sont en bon état, afin de prévenir les blessures et l’ingestion de matériaux"]
[null,"c)","Chaque secteur ainsi que les espaces dédiés aux enfants sont organisés et aménagés de façon à leur proposer différentes activités en fonction de leurs besoins et de leur âge (activités calmes, activités créatrices, activités motrices, jeu libre, etc.)"]
[]
[null,null,"Commentaires / constats "]
[]
[null,null,"Recommandations"]
[]
[]
[null,3.2,"Les locaux",null,null,null,null,null,null,"Références légales",null,"Points max","Résultat"]
[null,null,null,null,null,null,null,null,null,"art. 6 al. 1 ; art. 7 al. 1",null,4,{"$f":"IF(N161>=4,\"Conforme\",\"Partiellement conforme\")","v":"Partiellement conforme"}]
[null,null,"4 points = conforme",null,"3 - 0 points = partiellement conforme"]
[null,null,null,null,null,null,null,null,null,null,null,null,"Check"]
[null,"a)","L’espace intérieur disponible pour les activités éducatives des enfants est d’au moins 3 m2 par enfant, après déduction des espaces de service (mobilier fixe, vestiaire, sanitaires, lieux de passage, etc.)",null,null,null,null,null,null,null,null,null,null,{"$f":"COUNTIF(M157,\"x\")","v":0}]
[null,"b)","Les enfants disposent d'un lieu de repos ou de tranquillité adapté à leurs besoins (type de lieu en fonction de l'âge)",null,null,null,null,null,null,null,null,null,null,0]
[null,"c)","L’institution est équipée d’un téléphone fonctionnel et accessible en tout temps, y compris lors des sorties",null,null,null,null,null,null,null,null,null,null,0]
[null,"d)","Les locaux, notamment les sanitaires (y compris les tables à langer avec vision du groupe et accès facilité), les vestiaires, les espaces de repos, ceux dédiés aux adultes et ceux servant à la préparation et au service des repas ainsi que l'espace extérieur sont conformes aux directives",null,null,null,null,null,null,null,null,null,null,0]
[null,null,null,null,null,null,null,null,null,null,null,null,null,{"$f":"SUM(N157:N160)","v":0}]
[null,null,"Commentaires / constats "]
[]
[null,null,"Recommandations"]
[]
[]
[null,"Norme 4","L'institution respecte les exigences légales en matière de pédagogie et d’organisation"]
[]
[null,4.0999999999999996,"Le projet institutionnel",null,null,null,null,null,null,"Références légales",null,"Points max","Résultat"]
[null,null,null,null,null,null,null,null,null,"art. 8",null,1,{"$f":"COUNTIF(M173,\"x\")","v":0}]
[]
[null,null,null,null,null,null,null,null,null,null,null,null,"Check"]
[null,null,"Le projet institutionnel est complet et actualisé (organisation et infrastructures). Les documents suivants sont à jour  : statuts de l'exploitant, extrait du registre du commerce, liste des membres de l'organe exécutif, règlement de l'institution destiné aux parents, assurance responsabilité civile. Il existe une politique de formation du personnel."]
[]
[null,null,"Commentaires / constats "]
[]
[null,null,"Recommandations"]
[]
[]
[null,4.2,"Le concept pédagogique ",null,null,null,null,null,null,"Références légales",null,"Points max","Résultat"]
[null,null,null,null,null,null,null,null,null,"art. 9",null,3,{"$f":"COUNTIF(M184:M186,\"x\")","v":0}]
[]
[null,null,null,null,null,null,null,null,null,null,null,null,"Check"]
[null,"a)","Le concept pédagogique répond aux exigences réglementaires et légales"]
[null,"b)","Le concept pédagogique reflète la réalité de l’institution"]
[null,"c)","Le concept pédagogique est mis à jour et revu régulièrement, en collaboration avec le personnel d’encadrement "]
[]
[null,null,"Commentaires / constats "]
[]
[null,null,"Recommandations"]
[]
[]
[null,4.3,"La mise en œuvre du concept pédagogique respecte le cadre légal",null,null,null,null,null,null,"Références légales",null,"Points max","Résultat"]
[null,null,null,null,null,null,null,null,null,"art. 3a al. 1 let. a LAJE; art. 15 al. 1 let. a et c OPE",null,{"$f":"L198+L209+L219+L229+L241+L254","v":18},{"$f":"IF(N194>=13,\"Conforme\",IF(N194<=8,\"Non conforme\",\"Partiellement conforme\"))","v":"Non conforme"},{"$f":"M202+M212+M222+M234+M247+M257","v":0}]
[null,null,"18 à 13 points = conforme",null,null,"12 à 9 points = partiellement conforme",null,null,null,"8 à 0 points = non conforme"]
[]
[null,"4.3.1","Sécurité affective"]
[null,null,null,null,null,null,null,null,null,null,null,3,"Check"]
[null,"a)","La direction propose une organisation stable qui respecte les besoins des enfants, notamment en limitant le nombre d’intervenant-e-s auprès des enfants et en permettant l’appartenance de l’enfant à un groupe",null,null,null,null,null,null,null,null,null,null,{"$f":"IF(M199=\"x\",1,0)","v":0}]
[null,"b)","L’enfant est libre d’exprimer ses besoins et ses émotions, qui sont prises en compte et considérées par le personnel d’encadrement",null,null,null,null,null,null,null,null,null,null,{"$f":"IF(M200=\"x\",1,0)","v":0}]
[null,"c)","Le personnel d’encadrement est disponible et porte une attention adéquate aux enfants",null,null,null,null,null,null,null,null,null,null,{"$f":"IF(M201=\"x\",1,0)","v":0}]
[null,null,null,null,null,null,null,null,null,null,null,null,{"$f":"SUM(N199:N201)","v":0}]
[null,null,"Commentaires / constats "]
[]
[null,null,"Recommandations"]
[]
[]
[null,"4.3.2","Prise en compte de l’individualité de chacun dans le collectif "]
[null,null,null,null,null,null,null,null,null,null,null,2,"Check"]
[null,"a)","L’enfant est respecté dans son individualité et ses spécificités sont connues par le personnel d’encadrement ",null,null,null,null,null,null,null,null,null,null,{"$f":"IF(M210=\"x\",1,0)","v":0}]
[null,"b)","Les règles et les limites sont pensées et communiquées de manière à accompagner les enfants dans leur développement ",null,null,null,null,null,null,null,null,null,null,{"$f":"IF(M211=\"x\",1,0)","v":0}]
[null,null,null,null,null,null,null,null,null,null,null,null,{"$f":"SUM(N210:N211)","v":0}]
[null,null,"Commentaires / constats "]
[]
[null,null,"Recommandations"]
[]
[]
[null,"4.3.3","Langage, interaction verbale et non verbale"]
[null,null,null,null,null,null,null,null,null,null,null,2,"Check"]
[null,"a)","Un langage verbal et non verbal adapté aux compétences des enfants et respectueux de chacun (vocabulaire, gestuelle et tonalité) est utilisé",null,null,null,null,null,null,null,null,null,null,{"$f":"IF(M220=\"x\",1,0)","v":0}]
[null,"b)","Le climat vise à favoriser des interactions sociales positives entre les enfants",null,null,null,null,null,null,null,null,null,null,{"$f":"IF(M221=\"x\",1,0)","v":0}]
[null,null,null,null,null,null,null,null,null,null,null,null,{"$f":"SUM(N220:N221)","v":0}]
[null,null,"Commentaires / constats "]
[]
[null,null,"Recommandations"]
[]
[]
[null,"4.3.4","Activités, jeu et matériel"]
[null,null,null,null,null,null,null,null,null,null,null,4,"Check"]
[null,"a)","L’enfant bénéficie de temps suffisant pour le jeu",null,null,null,null,null,null,null,null,null,null,{"$f":"IF(M230=\"x\",1,0)","v":0}]
[null,"b)","Il est libre de participer ou non à certaines activités ludiques",null,null,null,null,null,null,null,null,null,null,{"$f":"IF(M231=\"x\",1,0)","v":0}]
[null,"c)","La curiosité et les découvertes de l’enfant sont stimulées par différentes propositions qui lui sont offertes",null,null,null,null,null,null,null,null,null,null,{"$f":"IF(M232=\"x\",1,0)","v":0}]
[null,"d)","L’enfant a, à sa disposition et en suffisance, du matériel varié, adapté à son âge et organisé en fonction de ses compétences",null,null,null,null,null,null,null,null,null,null,{"$f":"IF(M233=\"x\",1,0)","v":0}]
[null,null,null,null,null,null,null,null,null,null,null,null,{"$f":"SUM(N230:N233)","v":0}]
[null,null,"Commentaires / constats "]
[]
[null,null,"Recommandations"]
[]
[]
[null,"4.3.5","Prise en compte des besoins physiologiques de chacun (repas, repos, etc.) "]
[null,null,null,null,null,null,null,null,null,null,null,5,"Check"]
[null,"a)","L’enfant peut se reposer lorsqu'il en ressent le besoin",null,null,null,null,null,null,null,null,null,null,{"$f":"IF(M242=\"x\",1,0)","v":0}]
[null,"b)","Le besoin de mouvement des enfants est reconnu et respecté",null,null,null,null,null,null,null,null,null,null,{"$f":"IF(M243=\"x\",1,0)","v":0}]
[null,"c)","L’organisation de la journée est adaptée à l’âge, aux ressources et aux besoins individuels des enfants",null,null,null,null,null,null,null,null,null,null,{"$f":"IF(M244=\"x\",1,0)","v":0}]
[null,"d)","L’enfant bénéficie de repas équilibrés, variés et en suffisance, par une supervision de la constitution des menus, de la confection et du service des repas ; il a accès à de l'eau de manière fréquente ",null,null,null,null,null,null,null,null,null,null,{"$f":"IF(M245=\"x\",1,0)","v":0}]
[null,"e)","L’enfant bénéficie de soins adaptés: il est changé (et nourri pour les bébés) en fonction de ses besoins individuels et non selon un horaire fixe, il peut aller aux toilettes selon ses besoins ",null,null,null,null,null,null,null,null,null,null,{"$f":"IF(M246=\"x\",1,0)","v":0}]
[null,null,null,null,null,null,null,null,null,null,null,null,{"$f":"SUM(N242:N246)","v":0}]
[null,null,"Commentaires / constats "]
[]
[null,null,"Recommandations"]
[]
[]
[null,"4.3.6","Autonomie"]
[null,null,null,null,null,null,null,null,null,null,null,2,"Check"]
[null,"a)","L’enfant bénéficie d’un environnement aménagé et organisé de façon à favoriser des actes autonomes",null,null,null,null,null,null,null,null,null,null,{"$f":"IF(M255=\"x\",1,0)","v":0}]
[null,"b)","Il est soutenu au besoin dans sa prise d’initiative, dans la réalisation de certaines tâches",null,null,null,null,null,null,null,null,null,null,{"$f":"IF(M256=\"x\",1,0)","v":0}]
[null,null,null,null,null,null,null,null,null,null,null,null,{"$f":"SUM(N255:N256)","v":0}]
[null,null,"Commentaires / constats "]
[]
[null,null,"Recommandations"]
[]
[]
[null,null,"Résultat - constats et/ou recommandations"]
[]
[]
[null,null,"Résultat ",null,null,null,{"$f":"Récap!L37","v":"Non conforme"},null,null,null,null,null,null,"Pour que le résultat s'affiche correctement,",null,"Pour que le résultat s'affiche correctement,"]
[null,null,null,null,null,null,null,null,null,null,null,null,null,"chaque rubrique doit être complétée",null,"chaque rubrique doit être complétée"]
[]
[null,null,"Le résultat \"conforme\" atteste de la conformité de l'institution au regard du cadre légal."]
[null,null,"En cas de résultat partiellement conforme ou non-conforme (résultat \"orange\" ou \"rouge\"), l'OAJE mettra en place un suivi renforcé de l'institution, jusqu'à ce que cette dernière réponde à nouveau aux critères de conformité. Durant la période de suivi renforcé, l'institution conserve son autorisation d'exploiter. Toutefois, en fonction de l'évolution de la situation, l'OAJE se réserve le droit de modifier les conditions d'autorisation, voire de la révoquer.\nLes critères insuffisants font l'objet d'une motivation et il est de la responsabilité de l'institution d'y remédier.\nL'institution dispose d'un délai de 15 jours pour faire parvenir ses commentaires sur la présente évaluation (qui seront annexés au présent document).\n\n"]
[null,null,"Dans tous les cas, l'OAJE reste à disposition pour tout renseignement complémentaire."]
[]
[null,"No item","A l'issue de la visite, les points suivants nécessitent une mise en conformité",null,null,null,null,null,null,null,null,"Délai"]
[1]
[2]
[3]
[4]
[5]
[6]
[7]
[8]
[9]
[10]
[]
[]
[null,"No item","A l'issue de la visite, les points suivants nécessitent une attention particulière au titre de recommandation"]
[1]
[2]
[3]
[4]
[5]
[6]
[7]
[8]
[9]
[10]

{"sheet":"Récap","index":2,"n_rows":57,"n_cols":14,"rows_kept":57,"cut":false,"hidden":false,"merged":[[46,11,46,12],[52,11,52,12],[53,11,53,12],[54,11,54,12],[55,11,55,12],[56,11,56,12],[47,11,47,12],[48,11,48,12],[49,11,49,12],[50,11,50,12],[51,11,51,12],[0,13,6,17],[1,1,1,2],[45,6,45,7],[36,11,36,12],[22,11,22,12],[1,3,1,12],[4,3,4,12],[8,0,8,12],[47,2,47,10],[48,2,48,10],[49,2,49,10],[50,2,50,10],[51,2,51,10],[52,2,52,10],[53,2,53,10],[54,2,54,10],[55,2,55,10],[56,2,56,10]]}
[null,null,null,null,null,null,null,null,null,null,null,null,null,"Hors zone impression"]
[null,"Office de l'accueil\nde jour des enfants",null,"RECAPITULATIF - GRILLE DE SURVEILLANCE "]
[null,"de jour des enfants"]
[]
[null,"Rue de la Paix 4",null," DE L’ACCUEIL COLLECTIF DE JOUR PRESCOLAIRE A LA JOURNEE"]
[null,"1014 Lausanne"]
[]
[]
["Informations sur l'institution"]
[]
[null,null,null,"Nom de l'institution",{"$f":"'Grille de surveillance'!E11","v":0},null,null,null,null,null,"N° autorisation",{"$f":"'Grille de surveillance'!L11","v":0}]
[null,null,null,"Nom de la direction 1",{"$f":"'Grille de surveillance'!E12","v":0},null,null,null,null,null,"Date de la précédente visite",{"$f":"'Grille de surveillance'!L12","v":"00:00:00"}]
[null,null,null,"Adresse mail de la direction 1",{"$f":"'Grille de surveillance'!E13","v":0},null,null,null,null,null,"Date de la visite",{"$f":"'Grille de surveillance'!L13","v":"00:00:00"}]
[null,null,null,"Nom de la direction 2",{"$f":"'Grille de surveillance'!E14","v":0},null,null,null,null,null,"Horaire de la visite (de xh à xh)",{"$f":"'Grille de surveillance'!L14","v":0}]
[null,null,null,"Adresse mail de la direction 2",{"$f":"'Grille de surveillance'!E15","v":0}]
[null,null,null,"Adresse mail de l'exploitant",{"$f":"'Grille de surveillance'!E16","v":0}]
[null,null,null,"Adresse de l'institution",{"$f":"'Grille de surveillance'!E17","v":0}]
[null,null,null,null,{"$f":"'Grille de surveillance'!E18","v":0}]
[null,null,null,"Nom(s) CEMA",{"$f":"'Grille de surveillance'!E19","v":0}]
[]
[]
[]
[null,"Pondération des normes et des critères de la grille de surveillance du préscolaire à la journée",null,null,null,null,null,null,null,null,null,"Récapitulatif des points acquis"]
[null,null,null,null,null,null,null,null,null,null,null,"Point max","Résulat"]
[null,{"$f":"'Grille de surveillance'!B40","v":1.1000000000000001},{"$f":"'Grille de surveillance'!C40","v":"Les responsabilités de la direction de l’institution sont conformes aux directives "},null,null,null,null,null,null,null,null,{"$f":"'Grille de surveillance'!L41","v":4},{"$f":"'Grille de surveillance'!M41","v":0}]
[null,{"$f":"'Grille de surveillance'!B54","v":1.2},{"$f":"'Grille de surveillance'!C54","v":"Les exigences légales relatives au taux d’activité de la direction ainsi qu’à son organisation sont respectées "},null,null,null,null,null,null,null,null,{"$f":"'Grille de surveillance'!L55","v":3},{"$f":"'Grille de surveillance'!M55","v":0}]
[null,{"$f":"'Grille de surveillance'!B67","v":1.3},{"$f":"'Grille de surveillance'!C67","v":"Le taux d’encadrement éducatif des enfants accueillis est conforme aux directives "},null,null,null,null,null,null,null,null,null,{"$f":"'Grille de surveillance'!M68","v":"Partiellement conforme"},"5 = conforme ; 4 - 0  = Partiellement conforme"]
[null,{"$f":"'Grille de surveillance'!B97","v":2.1},{"$f":"'Grille de surveillance'!C97","v":"La sécurité physique des enfants est assurée "},null,null,null,null,null,null,null,null,null,{"$f":"'Grille de surveillance'!M98","v":"Non conforme"},"5 - 4 = conforme ; 3 = partiellement conforme ; 2 - 0 = non conforme"]
[null,{"$f":"'Grille de surveillance'!B120","v":2.2000000000000002},{"$f":"'Grille de surveillance'!C120","v":"Toutes les mesures nécessaires touchant à la santé des enfants, à l’hygiène des locaux, et du matériel sont prises "},null,null,null,null,null,null,null,null,null,{"$f":"'Grille de surveillance'!M121","v":"Non conforme"},"6 - 4 = conforme ; 3 = partiellement conforme ; 2 - 0 = non conforme"]
[null,{"$f":"'Grille de surveillance'!B140","v":3.1},{"$f":"'Grille de surveillance'!C140","v":"Aménagements et équipements"},null,null,null,null,null,null,null,null,{"$f":"'Grille de surveillance'!L141","v":3},{"$f":"'Grille de surveillance'!M141","v":0}]
[null,{"$f":"'Grille de surveillance'!B153","v":3.2},{"$f":"'Grille de surveillance'!C153","v":"Les locaux"},null,null,null,null,null,null,null,null,null,{"$f":"'Grille de surveillance'!M154","v":"Partiellement conforme"},"4 = conforme ; 3 - 0  = Partiellement conforme"]
[null,{"$f":"'Grille de surveillance'!B169","v":4.0999999999999996},{"$f":"'Grille de surveillance'!C169","v":"Le projet institutionnel"},null,null,null,null,null,null,null,null,{"$f":"'Grille de surveillance'!L170","v":1},{"$f":"'Grille de surveillance'!M170","v":0}]
[null,{"$f":"'Grille de surveillance'!B180","v":4.2},{"$f":"'Grille de surveillance'!C180","v":"Le concept pédagogique "},null,null,null,null,null,null,null,null,{"$f":"'Grille de surveillance'!L181","v":3},{"$f":"'Grille de surveillance'!M181","v":0}]
[null,{"$f":"'Grille de surveillance'!B193","v":4.3},{"$f":"'Grille de surveillance'!C193","v":"La mise en œuvre du concept pédagogique respecte le cadre légal"},null,null,null,null,null,null,null,null,null,{"$f":"'Grille de surveillance'!M194","v":"Non conforme"},"18 - 13 = conforme ; 12 - 9 = partiellement conforme ; 8 - 0 = non conforme"]
[null,null,null,null,null,null,null,null,null,null,"Total",{"$f":"SUM(L25:L34)","v":14},{"$f":"SUM(M25:M34)","v":0}]
[null,null,"Conforme",null,"Entre 14 et 10"]
[null,null,"Partiellement conforme",null,"Entre 9 et 7",null,"[75% - 50%]",null,null,null,"Résultat",{"$f":"IF(OR(M35<=6,M28=\"Non conforme\",M29=\"Non conforme\",M34=\"Non conforme\"),\"Non conforme\",IF(OR(M35<=9,M35<=8,M27=\"Partiellement conforme\",M28=\"Partiellement conforme\",M29=\"Partiellement conforme\",M31=\"Partiellement conforme\",M34=\"Partiellement conforme\"),\"Partiellement conforme\",\"Conforme\"))","v":"Non conforme"}]
[null,null,"Non conforme",null,"Entre 6 et 0",null,"[-50%]"]
[]
[null,"ð","les items 1.3; 2.1; 2.2; 3.2 et 4.3 font basculer le résultat indépendamment du total de points acquis:"]
[null,null,1.3,"5 = conforme ; 4 - 0  = Partiellement conforme"]
[null,null,2.1,"5 - 4 = conforme ; 3 = partiellement conforme ; 2 - 0 = non conforme"]
[null,null,2.2000000000000002,"6 - 4 = conforme ; 3 = partiellement conforme ; 2 - 0 = non conforme"]
[null,null,3.2,"4 = conforme ; 3 - 0  = Partiellement conforme"]
[null,null,4.3,"18 - 13 = conforme ; 12 - 9 = partiellement conforme ; 8 - 0 = non conforme"]
[]
[null,"No item","A l'issue de la visite, les points suivants nécessitent une mise en conformité",null,null,null,null,null,null,null,null,"Délai"]
[1,{"$f":"'Grille de surveillance'!B274","v":0},{"$f":"'Grille de surveillance'!C274:K274","v":0},null,null,null,null,null,null,null,null,{"$f":"'Grille de surveillance'!L274","v":0}]
[2,{"$f":"'Grille de surveillance'!B275","v":0},{"$f":"'Grille de surveillance'!C275:K275","v":0},null,null,null,null,null,null,null,null,{"$f":"'Grille de surveillance'!L275","v":0}]
[3,{"$f":"'Grille de surveillance'!B276","v":0},{"$f":"'Grille de surveillance'!C276:K276","v":0},null,null,null,null,null,null,null,null,{"$f":"'Grille de surveillance'!L276","v":0}]
[4,{"$f":"'Grille de surveillance'!B277","v":0},{"$f":"'Grille de surveillance'!C277:K277","v":0},null,null,null,null,null,null,null,null,{"$f":"'Grille de surveillance'!L277","v":0}]
[5,{"$f":"'Grille de surveillance'!B278","v":0},{"$f":"'Grille de surveillance'!C278:K278","v":0},null,null,null,null,null,null,null,null,{"$f":"'Grille de surveillance'!L278","v":0}]
[6,{"$f":"'Grille de surveillance'!B279","v":0},{"$f":"'Grille de surveillance'!C279:K279","v":0},null,null,null,null,null,null,null,null,{"$f":"'Grille de surveillance'!L279","v":0}]
[7,{"$f":"'Grille de surveillance'!B280","v":0},{"$f":"'Grille de surveillance'!C280:K280","v":0},null,null,null,null,null,null,null,null,{"$f":"'Grille de surveillance'!L280","v":0}]
[8,{"$f":"'Grille de surveillance'!B281","v":0},{"$f":"'Grille de surveillance'!C281:K281","v":0},null,null,null,null,null,null,null,null,{"$f":"'Grille de surveillance'!L281","v":0}]
[9,{"$f":"'Grille de surveillance'!B282","v":0},{"$f":"'Grille de surveillance'!C282:K282","v":0},null,null,null,null,null,null,null,null,{"$f":"'Grille de surveillance'!L282","v":0}]
[10,{"$f":"'Grille de surveillance'!B283","v":0},{"$f":"'Grille de surveillance'!C283:K283","v":0},null,null,null,null,null,null,null,null,{"$f":"'Grille de surveillance'!L283","v":0}]

{"sheet":"Pièces contrôlées","index":3,"n_rows":42,"n_cols":14,"rows_kept":42,"cut":false,"hidden":false,"merged":[[38,11,38,12],[39,4,39,5],[42,0,42,12],[34,11,34,12],[36,11,36,12],[36,4,36,5],[39,1,39,3],[36,8,36,10],[38,8,38,10],[38,4,38,5],[37,1,37,3],[38,1,38,3],[37,4,37,5],[32,11,32,12],[31,4,31,5],[32,4,32,5],[34,4,34,5],[35,4,35,5],[32,8,32,10],[34,8,34,10],[26,11,26,12],[27,11,27,12],[24,4,24,5],[25,4,25,5],[26,4,26,5],[27,4,27,5],[0,13,6,16],[1,1,1,2],[1,3,1,11],[4,3,4,11],[5,10,5,11],[8,0,8,12],[21,13,23,16],[24,1,24,3],[26,8,26,10],[27,8,27,10],[21,7,23,10],[21,11,23,12],[21,0,23,3],[21,4,23,5],[24,8,24,10],[25,8,25,10],[25,1,25,3],[26,1,26,3],[27,1,27,3],[24,11,24,12],[25,11,25,12],[28,1,28,3],[29,1,29,3],[30,1,30,3],[36,1,36,3],[31,1,31,3],[32,1,32,3],[33,1,33,3],[34,1,34,3],[35,1,35,3],[28,8,28,10],[28,11,28,12],[30,8,30,10],[30,11,30,12],[28,4,28,5],[30,4,30,5],[29,4,29,5]]}
[null,null,null,null,null,null,null,null,null,null,null,null,null,"Hors zone impression"]
[null,"Office de l'accueil\nde jour des enfants",null,"PIECES CONTROLEES"]
[null,"de jour des enfants"]
[]
[null,"Rue de la Paix 4",null," DE L’ACCUEIL COLLECTIF DE JOUR PRESCOLAIRE A LA JOURNEE"]
[null,"1014 Lausanne"]
[]
[]
["Informations sur l'institution"]
[]
[null,null,"Nom de l'institution",{"$f":"'Grille de surveillance'!E11","v":0},null,null,null,null,"N° autorisation",{"$f":"'Grille de surveillance'!L11","v":0}]
[null,null,"Nom de la direction 1",{"$f":"'Grille de surveillance'!E12","v":0},null,null,null,null,"Date de la précédente visite",{"$f":"'Grille de surveillance'!L12","v":"00:00:00"}]
[null,null,"Adresse mail de la direction 1",{"$f":"'Grille de surveillance'!E13","v":0},null,null,null,null,"Date de la visite",{"$f":"'Grille de surveillance'!L13","v":"00:00:00"}]
[null,null,"Nom de la direction 2",{"$f":"'Grille de surveillance'!E14","v":0},null,null,null,null,"Horaire de la visite (de xh à xh)",{"$f":"'Grille de surveillance'!L14","v":0}]
[null,null,"Adresse mail de la direction 2",{"$f":"'Grille de surveillance'!E15","v":0}]
[null,null,"Adresse mail de l'exploitant",{"$f":"'Grille de surveillance'!E16","v":0}]
[null,null,"Adresse de l'institution",{"$f":"'Grille de surveillance'!E17","v":0}]
[null,null,null,{"$f":"'Grille de surveillance'!E18","v":0}]
[null,null,"Nom(s) CEMA",{"$f":"'Grille de surveillance'!E19","v":0}]
[]
[]
["Documents à remettre à l'OAJE",null,null,null,"Visa CEMA",null,null,"Pièces demandées LORS de la visite",null,null,null,"Visa CEMA",null,"MARCHE A SUIVRE"]
[]
[]
[null,"Si exigée, réponse écrite aux demandes faites dans le dernier rapport de l'ECA  (à envoyer en copie à l'ECA)",null,null,null,null,null,null,"Planning hebdomadaire ou mensuel des enfants (nom, prénom, âge et degré scolaire)",null,null,null,null,"Ü Complétez les cellules des documents demandés par un  \"x\""]
[null,"Dernier rapport de l'OFCO",null,null,null,null,null,null,"Horaire du personnel "]
[null,"Concept pédagogique à jour",null,null,null,null,null,null,"Grille de dotation du personnel remplie"]
[null,"Statuts de l'exploitant à jour",null,null,null,null,null,null,"Eventuelle liste des remplaçant-e-s"]
[null,"Extrait du registre du commerce à jour"]
[null,"Liste des membres de l'organe exécutif à jour"]
[null,"Règlement de l'institution à jour"]
[null,"Assurance RC en vigueur (police, attestation ou facture)"]
[null,"Procédure incendie et autres catastrophes naturelles à jour"]
[null,"Procédure accidents, maladies et épidémies à jour"]
[null,"Procédure disparition d'enfants à jour"]
[null,"Procédure suspicion de mauvais traitement à jour"]
[null,"Procédure plaintes des parents à jour"]
[null,"Procédure pour les activités extérieures à jour"]
[null,"Diplôme de la formation complémentaire de la direction 1"]
[null,"Diplôme de la formation complémentaire de la direction 2"]
[]
["Commentaires"]

{"sheet":"Donnees","index":4,"n_rows":9,"n_cols":8,"rows_kept":9,"cut":false,"hidden":true,"merged":[[2,2,2,3],[2,4,2,5],[2,6,2,7],[2,1,3,1]]}
[]
[]
[null,"Point","Non-conformité",null,"Conformité partielle ",null,"Conformité"]
[null,null,"de","à","de","à","de","à"]
[null,1.3,null,null,0,3]
[null,2.1,0,2,3,3,4,1000]
[null,2.2000000000000002,0,2,3,3,4,1000]
[null,3.3,null,null,0,4]
[null,4.3,0,9,10,14]